lending/lending_fUSD_20241212
["ID","MTS","AMOUNT","RATE_DAILY","PERIOD"]
[345061656,1733962123213,554.06,8.219e-05,2]
[345061659,1733962232314,-250.0,9.945e-05,2]
[345061660,1733962232325,-489.46,9.96e-05,2]
[345061661,1733962232335,-250.0,9.964e-05,2]
[345061662,1733962232346,-214.0,9.975e-05,2]
[345061663,1733962232356,-1000.0,9.978e-05,2]
[345061664,1733962232365,-710.54,0.00010013,2]
[345061665,1733962232376,-736.08,0.00010137,2]
[345061666,1733962232387,-554.06,0.00010474,2]
[345061667,1733962232397,-435.45,0.000105,2]
[345061668,1733962232406,-551.58,0.000105,2]
[345061669,1733962232416,-435.45,0.000105,2]
[345061670,1733962232429,-870.24,0.000105,2]
[345061671,1733962232438,-398.094,0.0001055,2]
[345061672,1733962232447,-300.0,0.00010599,2]
[345061673,1733962232456,-435.45,0.000106,2]
[345061674,1733962232466,-768.77,0.000106,2]
[345061675,1733962232476,-150.0,0.00010836,2]
[345061676,1733962232486,-150.0,0.00010837,2]
[345061677,1733962232496,-1500.0,0.00010838,2]
[345061678,1733962232506,-299.99,0.00010838,2]
[345061679,1733962232516,-150.99,0.00010838,2]
[345061680,1733962232527,-1442.21,0.00010838,2]
[345061681,1733962232536,-9999.99,0.00010838,2]
[345061682,1733962232545,-150.99,0.00010838,2]
[345061683,1733962232554,-999.99,0.00010838,2]
[345061684,1733962232564,-8032.28,0.00010838,2]
[345061685,1733962232573,-150.0,0.00010843,2]
[345061686,1733962232583,-150.0,0.00010846,2]
[345061687,1733962232593,-1500.0,0.00010847,2]
[345061688,1733962232602,-150.0,0.00010849,2]
[345061689,1733962232612,-150.0,0.00010857,2]
[345061690,1733962232621,-150.0,0.0001086,2]
[345061691,1733962232631,-150.0,0.00010866,2]
[345061692,1733962232640,-1500.0,0.00010869,2]
[345061693,1733962232650,-1500.0,0.00010874,2]
[345061694,1733962232659,-1500.0,0.00010876,2]
[345061695,1733962232669,-150.0,0.00010895,2]
[345061696,1733962232682,-150.0,0.00010898,2]
[345061698,1733962232691,-768.77,0.000109,2]
[345061700,1733962232701,-1949.01,0.000109,2]
[345061701,1733962232710,-435.45,0.000109,2]
[345061703,1733962232720,-746.61,0.000109,2]
[345061705,1733962232729,-231.7,0.000109,2]
[345061707,1733962232739,-1500.0,0.00010901,2]
[345061709,1733962232749,-150.0,0.00010902,2]
[345061711,1733962232759,-4419.576,0.00010902,2]
[345061713,1733962232768,-150.0,0.00010903,2]
[345061715,1733962232778,-150.0,0.00010912,2]
[345061717,1733962232787,-150.0,0.00010917,2]
[345061719,1733962232796,-150.0,0.00010921,2]
[345061721,1733962232805,-150.0,0.00010931,2]
[345061723,1733962232815,-1500.0,0.00010931,2]
[345061725,1733962232824,-1500.0,0.00010942,2]
[345061728,1733962232834,-1447.52370318,0.00010942,2]
[345061731,1733962232843,-150.0,0.00010947,2]
[345061733,1733962232852,-227.4855823,0.00010949,2]
[345061735,1733962232861,-1500.0,0.00010953,2]
[345061737,1733962232871,-225.68181419,0.00010958,2]
[345061739,1733962232880,-618.32,0.00010958,2]
[345061741,1733962232889,-500.0,0.00010958,2]
[345061743,1733962232899,-500.0,0.00010958,2]
[345061745,1733962232908,-599.12,0.00010958,2]
[345061746,1733962232918,-500.0,0.00010958,2]
[345061747,1733962232929,-500.0,0.00010958,2]
[345061748,1733962232938,-500.0,0.00010958,2]
[345061749,1733962232948,-500.0,0.00010958,2]
[345061750,1733962232957,-500.0,0.00010958,2]
[345061751,1733962232967,-500.0,0.00010958,2]
[345061752,1733962232976,-608.39469731,0.00010958,2]
[345061753,1733962232986,-500.0,0.00010958,2]
[345061754,1733962232995,-500.0,0.00010958,2]
[345061755,1733962233004,-500.0,0.00010958,2]
[345061756,1733962233013,-500.0,0.00010958,2]
[345061757,1733962233023,-1500.0,0.00010958,2]
[345061758,1733962233033,-185.7858959,0.00010958,2]
[345061759,1733962233042,-500.0,0.00010958,2]
[345061760,1733962233052,-221.27693952,0.00010958,2]
[345061761,1733962233062,-500.0,0.00010958,2]
[345061762,1733962233072,-500.0,0.00010958,2]
[345061763,1733962233082,-500.0,0.00010958,2]
[345061764,1733962233091,-30718.47,0.00010959,2]
[345061765,1733962233101,-150.0,0.00010962,2]
[345061766,1733962233110,-150.0,0.00010965,2]
[345061767,1733962233120,-150.0,0.00010965,2]
[345061768,1733962233130,-2148.64748614,0.00010967,2]
[345061769,1733962233139,-2148.64748614,0.00010967,2]
[345061770,1733962233149,-4557.22502508,0.00010969,2]
[345061771,1733962233159,-4557.22502508,0.0001097,2]
[345061772,1733962233169,-2148.64748614,0.00010971,2]
[345061773,1733962233181,-274.64441369,0.00010971,2]
[345061774,1733962233191,-150.0,0.00010971,2]
[345061775,1733962233201,-122317.49177432,0.00010972,2]
[345061776,1733962233212,-2180.95844639,0.00010972,2]
[345061777,1733962233221,-2148.64748614,0.00010973,2]
[345061778,1733962233231,-150.0,0.00010973,2]
[345061779,1733962233242,-150.0,0.00010973,2]
[345061780,1733962233252,-150.0,0.00010973,2]
[345061781,1733962233262,-200.0,0.00010973,2]
[345061782,1733962233272,-274.64441369,0.00010974,2]
[345061783,1733962233281,-29910.63997361,0.00010975,2]
[345061784,1733962233292,-122317.49177432,0.00010976,2]
[345061785,1733962233306,-150.0,0.00010976,2]
[345061786,1733962233316,-2180.95844639,0.00010976,2]
[345061787,1733962233326,-29910.63997361,0.00010976,2]
[345061788,1733962233335,-6294.53841671,0.00010977,2]
[345061789,1733962233364,-1069.00829095,0.00010977,2]
[345061790,1733962233376,-22547.09326595,0.00010977,2]
[345061791,1733962233386,-274.64441369,0.00010977,2]
[345061792,1733962233396,-877.32006221,0.0001098,2]
[345061793,1733962233443,-3047.87549587,0.0001098,2]
[345061802,1733962238242,-374.86142861,0.0001098,2]
[345061803,1733962238460,-257.16803839,0.0001098,2]
[345061804,1733962238470,-1500.0,0.0001098,2]
[345061805,1733962238480,-4557.22502508,0.00010981,2]
[345061806,1733962238490,-2180.95844639,0.00010981,2]
[345061807,1733962238500,-200.0,0.00010981,2]
[345061808,1733962238509,-4557.22502508,0.00010982,2]
[345061809,1733962238519,-15906.95216516,0.00010983,2]
[345061810,1733962238533,-989.11250205,0.00010983,2]
[345061813,1733962240352,-13014.5753064,0.00010983,2]
[345061814,1733962240363,-29910.63997361,0.00010984,2]
[345061815,1733962240372,-2148.64748614,0.00010985,2]
[345061816,1733962240382,-200.0,0.00010986,2]
[345061817,1733962240393,-1500.0,0.00010986,2]
[345061818,1733962240403,-122317.49177432,0.00010987,2]
[345061819,1733962240412,-50987.81224996,0.00010987,2]
[345061820,1733962240424,-71329.67952436,0.00010987,2]
[345061821,1733962240436,-2148.64748614,0.00010988,2]
[345061822,1733962240447,-29910.63997361,0.00010988,2]
[345061823,1733962240457,-274.64441369,0.00010989,2]
[345061824,1733962240467,-122317.49177432,0.00010991,2]
[345061825,1733962240477,-2180.95844639,0.00010991,2]
[345061826,1733962240486,-150.0,0.00010993,2]
[345061827,1733962240496,-1500.0,0.00010995,2]
[345061828,1733962240505,-2180.95844639,0.00010995,2]
[345061829,1733962240515,-200.0,0.00010997,2]
[345061830,1733962240524,-20817.22238486,0.00010998,2]
[345061831,1733962240536,-101500.26938946,0.00010998,2]
[345061832,1733962240547,-2180.95844639,0.00010998,2]
[345061833,1733962240556,-274.64441369,0.00010999,2]
[345061834,1733962240566,-4557.22502508,0.00011,2]
[345061835,1733962240575,-150.0,0.00011,2]
[345061836,1733962240585,-150.0,0.00011008,2]
[345061837,1733962240595,-150.0,0.00011013,2]
[345061838,1733962240604,-150.0,0.00011035,2]
[345061839,1733962240614,-200.0,0.0001104,2]
[345061840,1733962240623,-150.0,0.00011047,2]
[345061841,1733962240633,-150.0,0.0001105,2]
[345061842,1733962240643,-153.66773284,0.00011052,2]
[345061843,1733962240653,-150.0,0.00011057,2]
[345061844,1733962240662,-150.0,0.00011057,2]
[345061846,1733962240671,-150.0,0.00011061,2]
[345061848,1733962240682,-1310.922,0.00011067,2]
[345061849,1733962240692,-150.0,0.0001107,2]
[345061850,1733962240701,-150.0,0.0001107,2]
[345061851,1733962240711,-150.0,0.00011075,2]
[345061852,1733962240720,-150.0,0.00011075,2]
[345061853,1733962240729,-1500.0,0.00011075,2]
[345061854,1733962240738,-150.0,0.00011078,2]
[345061855,1733962240747,-216.842,0.00011086,2]
[345061856,1733962240756,-150.0,0.00011086,2]
[345061857,1733962240766,-153.648,0.00011086,2]
[345061858,1733962240776,-2004.0,0.00011086,2]
[345061860,1733962240786,-150.0,0.00011086,2]
[345061861,1733962240795,-6701.9116597,0.0001109,2]
[345061863,1733962240804,-2745.6355616,0.0001109,2]
[345061865,1733962240814,-5879.4338833,0.00011092,2]
[345061867,1733962240823,-2584.59951062,0.00011092,2]
[345061869,1733962240835,-2472.35659628,0.00011092,2]
[345061870,1733962240844,-4234.4783305,0.00011092,2]
[345061871,1733962240853,-2411.118628,0.00011092,2]
[345061872,1733962240863,-2076.6016945,0.00011092,2]
[345061873,1733962240872,-1742.084761,0.00011092,2]
[345061874,1733962240881,-150.0,0.00011094,2]
[345061875,1733962240890,-150.0,0.00011095,2]
[345061876,1733962240900,-500.0,0.00011098,2]
[345061877,1733962240910,-620.24,0.00011098,2]
[345061878,1733962240919,-500.0,0.00011098,2]
[345061879,1733962240929,-500.0,0.00011098,2]
[345061880,1733962240938,-500.0,0.00011098,2]
[345061881,1733962240948,-309.0156429,0.00011098,2]
[345061882,1733962240957,-500.0,0.00011098,2]
[345061883,1733962240966,-500.0,0.00011098,2]
[345061884,1733962240976,-500.0,0.00011098,2]
[345061885,1733962240985,-500.0,0.00011098,2]
[345061886,1733962240995,-500.0,0.00011098,2]
[345061887,1733962241004,-500.0,0.00011098,2]
[345061888,1733962241013,-500.0,0.00011098,2]
[345061889,1733962241023,-294.99,0.00011098,2]
[345061890,1733962241033,-500.0,0.00011098,2]
[345061891,1733962241043,-500.0,0.00011098,2]
[345061892,1733962241053,-510.2682401,0.00011098,2]
[345061893,1733962241062,-500.0,0.00011098,2]
[345061894,1733962241072,-500.0,0.00011098,2]
[345061895,1733962241082,-500.0,0.00011098,2]
[345061896,1733962241092,-500.0,0.00011098,2]
[345061897,1733962241101,-33911.66164462,0.00011099,2]
[345061921,1733962246314,-808.3282862,0.00010989,2]
[345061922,1733962246326,-1931.54128107,0.00010989,2]
[345061923,1733962246419,-252.14799598,0.00010989,2]
[345061926,1733962423422,6501.05812694,0.00012,30]
[345061927,1733962423448,3498.94187306,0.00012,30]
[345061929,1733962566951,5000.0,0.0001221,9]
[345061930,1733962702368,5010.887,0.00012212,9]
[345061933,1733963157462,753.56,8.219e-05,2]
[345061960,1733963431418,-250.0,9.709e-05,2]
[345061961,1733963431428,-157.99,9.71e-05,2]
[345061962,1733963431438,-808.43,9.727e-05,2]
[345061963,1733963431448,-250.0,9.74e-05,2]
[345061964,1733963431458,-1000.0,9.75e-05,2]
[345061965,1733963431469,-250.0,0.00010064,2]
[345061966,1733963431479,-1007.28,0.0001007,2]
[345061967,1733963431488,-1016.49,0.00010071,2]
[345061968,1733963431498,-980.18,0.00010073,2]
[345061969,1733963431508,-167.44,0.00010075,2]
[345061970,1733963431518,-300.0,0.00010077,2]
[345061971,1733963431527,-300.0,0.00010077,2]
[345061972,1733963431537,-402.99,0.00010078,2]
[345061973,1733963431546,-150.99,0.00010078,2]
[345061974,1733963431555,-1004.69,0.00010078,2]
[345061975,1733963431565,-1009.28,0.00010081,2]
[345061976,1733963431574,-155.63,0.00010137,2]
[345061977,1733963431584,-365.49,0.00010137,2]
[345061978,1733963431594,-982.1,0.00010156,2]
[345061979,1733963431604,-1018.7,0.0001016,2]
[345061980,1733963431613,-1009.46,0.00010163,2]
[345061981,1733963431623,-1011.39,0.00010186,2]
[345061982,1733963431632,-994.34,0.00010228,2]
[345061983,1733963431642,-1017.32,0.00010305,2]
[345061984,1733963431651,-457.0,0.0001034,2]
[345061985,1733963431661,-435.34,0.00010378,2]
[345061986,1733963431670,-350.5,0.00010378,2]
[345061987,1733963431679,-731.86,0.00010378,2]
[345061988,1733963431688,-150.0,0.00010378,2]
[345061989,1733963431698,-999.69,0.00010448,2]
[345061990,1733963431707,-753.56,0.00010461,2]
[345061991,1733963431720,-150.0,0.00010489,2]
[345061992,1733963431729,-152.83305,0.00010489,2]
[345061993,1733963431739,-381.478,0.0001055,2]
[345061994,1733963431748,-457.0,0.0001064,2]
[345061995,1733963431758,-27478.78454997,0.00010662,2]
[345061996,1733963431776,-450.653,0.00010662,2]
[345061997,1733963431788,-29899.56245003,0.00010662,2]
[345061998,1733963431797,-152.83305,0.00010664,2]
[345061999,1733963431808,-1001.21,0.00010713,2]
[345062000,1733963431821,-995.19,0.00010803,2]
[345062001,1733963431830,-152.83305,0.00010839,2]
[345062003,1733963431839,-988.42,0.00010908,2]
[345062005,1733963431849,-185.0,0.00010909,2]
[345062007,1733963431859,-998.55,0.00010922,2]
[345062009,1733963431869,-457.0,0.0001094,2]
[345062011,1733963431879,-808.43,0.00010942,2]
[345062013,1733963431889,-980.23,0.00010947,2]
[345062015,1733963431898,-3672.0,0.00010959,2]
[345062017,1733963431908,-150.0,0.00010959,2]
[345062019,1733963431918,-6000.0,0.00010959,2]
[345062021,1733963431927,-6000.0,0.00010959,2]
[345062023,1733963431937,-1000.0,0.00010968,2]
[345062025,1733963431947,-200.0,0.00010977,2]
[345062027,1733963431957,-150.0,0.00010985,2]
[345062029,1733963431969,-3000.0,0.0001099,2]
[345062031,1733963431979,-200.0,0.00010992,2]
[345062033,1733963431988,-200.0,0.00010997,2]
[345062035,1733963431998,-616.7329,0.00010997,2]
[345062037,1733963432007,-5000.0,0.00011,2]
[345062039,1733963432017,-1621.527,0.00011011,2]
[345062041,1733963432026,-152.83305,0.00011014,2]
[345062043,1733963432035,-151.4354817,0.00011073,2]
[345062045,1733963432044,-1864.197,0.00011086,2]
[345062047,1733963432054,-1253.0,0.00011086,2]
[345062049,1733963432063,-1055.782,0.00011086,2]
[345062051,1733963432072,-1099.0,0.00011086,2]
[345062053,1733963432082,-150.0,0.00011086,2]
[345062055,1733963432091,-1262.0,0.00011086,2]
[345062057,1733963432100,-634.0,0.00011086,2]
[345062058,1733963432109,-567.0,0.00011086,2]
[345062060,1733963432118,-3924.584,0.00011086,2]
[345062061,1733963432127,-1000.2538886,0.00011088,2]
[345062063,1733963432136,-413.4364536,0.00011088,2]
[345062064,1733963432145,-1000.2538886,0.00011092,2]
[345062066,1733963432155,-1000.2538886,0.00011092,2]
[345062067,1733963432165,-1000.2538886,0.00011092,2]
[345062068,1733963432175,-413.4364536,0.00011092,2]
[345062069,1733963432184,-413.4364536,0.00011092,2]
[345062070,1733963432193,-413.4364536,0.00011092,2]
[345062071,1733963432203,-200.0,0.00011095,2]
[345062072,1733963432212,-1949.48,0.00011096,2]
[345062073,1733963432227,-500.0,0.00011097,2]
[345062074,1733963432236,-500.0,0.00011097,2]
[345062075,1733963432247,-500.0,0.00011097,2]
[345062076,1733963432256,-588.34,0.00011097,2]
[345062077,1733963432265,-500.0,0.00011097,2]
[345062078,1733963432274,-523.46,0.00011097,2]
[345062079,1733963432284,-500.0,0.00011097,2]
[345062080,1733963432293,-500.0,0.00011097,2]
[345062081,1733963432302,-500.0,0.00011097,2]
[345062082,1733963432312,-500.0,0.00011097,2]
[345062083,1733963432321,-500.0,0.00011097,2]
[345062084,1733963432331,-500.0,0.00011097,2]
[345062085,1733963432341,-500.0,0.00011097,2]
[345062086,1733963432351,-500.0,0.00011097,2]
[345062087,1733963432360,-500.0,0.00011097,2]
[345062088,1733963432371,-500.0,0.00011097,2]
[345062089,1733963432380,-500.0,0.00011097,2]
[345062090,1733963432389,-500.0,0.00011097,2]
[345062091,1733963432399,-500.0,0.00011097,2]
[345062092,1733963432409,-500.0,0.00011097,2]
[345062093,1733963432418,-500.0,0.00011097,2]
[345062094,1733963432427,-500.0,0.00011097,2]
[345062095,1733963432437,-500.0,0.00011097,2]
[345062096,1733963432447,-500.0,0.00011097,2]
[345062097,1733963432456,-500.0,0.00011097,2]
[345062098,1733963432466,-500.0,0.00011097,2]
[345062099,1733963432478,-500.0,0.00011097,2]
[345062100,1733963432487,-500.0,0.00011097,2]
[345062101,1733963432495,-500.0,0.00011097,2]
[345062102,1733963432504,-500.0,0.00011097,2]
[345062103,1733963432513,-500.0,0.00011097,2]
[345062104,1733963432523,-500.0,0.00011097,2]
[345062105,1733963432532,-500.0,0.00011097,2]
[345062106,1733963432541,-500.0,0.00011097,2]
[345062107,1733963432552,-500.0,0.00011097,2]
[345062108,1733963432562,-500.0,0.00011097,2]
[345062109,1733963432572,-500.0,0.00011097,2]
[345062110,1733963432581,-500.0,0.00011097,2]
[345062111,1733963432590,-500.0,0.00011097,2]
[345062112,1733963432599,-500.0,0.00011098,2]
[345062113,1733963432609,-500.0,0.00011098,2]
[345062114,1733963432618,-500.0,0.00011098,2]
[345062115,1733963432627,-500.0,0.00011098,2]
[345062116,1733963432637,-500.0,0.00011098,2]
[345062117,1733963432646,-500.0,0.00011098,2]
[345062118,1733963432656,-500.0,0.00011098,2]
[345062119,1733963432665,-500.0,0.00011098,2]
[345062120,1733963432675,-500.0,0.00011098,2]
[345062121,1733963432685,-500.0,0.00011098,2]
[345062122,1733963432694,-500.0,0.00011098,2]
[345062123,1733963432703,-579.54,0.00011098,2]
[345062124,1733963432713,-500.0,0.00011098,2]
[345062125,1733963432728,-500.0,0.00011098,2]
[345062126,1733963432737,-611.1705353,0.00011098,2]
[345062127,1733963432746,-500.0,0.00011098,2]
[345062128,1733963432755,-500.0,0.00011098,2]
[345062129,1733963432764,-630.30883246,0.00011098,2]
[345062130,1733963432773,-500.0,0.00011098,2]
[345062131,1733963432783,-641.09,0.00011098,2]
[345062132,1733963432792,-500.0,0.00011098,2]
[345062133,1733963432801,-500.0,0.00011098,2]
[345062134,1733963432810,-500.0,0.00011098,2]
[345062135,1733963432822,-500.0,0.00011098,2]
[345062136,1733963432831,-500.0,0.00011098,2]
[345062137,1733963432840,-500.0,0.00011098,2]
[345062138,1733963432850,-500.0,0.00011098,2]
[345062139,1733963432860,-320.72822842,0.00011098,2]
[345062140,1733963432870,-500.0,0.00011098,2]
[345062141,1733963432879,-520.00740215,0.00011098,2]
[345062142,1733963432889,-500.0,0.00011098,2]
[345062143,1733963432898,-500.0,0.00011098,2]
[345062144,1733963432908,-500.0,0.00011098,2]
[345062145,1733963432917,-500.0,0.00011098,2]
[345062146,1733963432926,-171.85,0.00011098,2]
[345062147,1733963432936,-227.28,0.00011098,2]
[345062148,1733963432945,-333.30098386,0.00011098,2]
[345062149,1733963432955,-500.0,0.00011098,2]
[345062150,1733963432964,-500.0,0.00011098,2]
[345062151,1733963432976,-500.0,0.00011098,2]
[345062152,1733963432986,-500.0,0.00011098,2]
[345062153,1733963432995,-500.0,0.00011098,2]
[345062154,1733963433004,-638.1141041,0.00011098,2]
[345062155,1733963433013,-531.3,0.00011098,2]
[345062156,1733963433023,-413.69,0.00011098,2]
[345062157,1733963433032,-500.0,0.00011098,2]
[345062158,1733963433042,-530.0859498,0.00011098,2]
[345062159,1733963433051,-500.0,0.00011098,2]
[345062160,1733963433060,-500.0,0.00011098,2]
[345062161,1733963433069,-500.0,0.00011098,2]
[345062162,1733963433079,-500.0,0.00011098,2]
[345062163,1733963433089,-500.0,0.00011098,2]
[345062164,1733963433098,-500.0,0.00011098,2]
[345062165,1733963433107,-500.0,0.00011098,2]
[345062166,1733963433116,-500.0,0.00011098,2]
[345062167,1733963433126,-500.0,0.00011098,2]
[345062168,1733963433135,-500.0,0.00011098,2]
[345062169,1733963433145,-500.0,0.00011098,2]
[345062170,1733963433155,-259.01069111,0.00011098,2]
[345062171,1733963433165,-500.0,0.00011098,2]
[345062172,1733963433174,-500.0,0.00011098,2]
[345062173,1733963433184,-500.0,0.00011098,2]
[345062174,1733963433194,-500.0,0.00011098,2]
[345062175,1733963433204,-500.0,0.00011098,2]
[345062176,1733963433214,-500.0,0.00011098,2]
[345062177,1733963433231,-500.20933369,0.00011098,2]
[345062178,1733963433241,-500.0,0.00011098,2]
[345062179,1733963433251,-500.0,0.00011098,2]
[345062180,1733963433261,-500.87,0.00011098,2]
[345062181,1733963433271,-500.0,0.00011098,2]
[345062182,1733963433281,-500.0,0.00011098,2]
[345062183,1733963433290,-500.0,0.00011098,2]
[345062184,1733963433300,-403.57,0.00011098,2]
[345062185,1733963433309,-500.0,0.00011098,2]
[345062186,1733963433319,-500.0,0.00011098,2]
[345062187,1733963433329,-500.0,0.00011098,2]
[345062188,1733963433338,-500.0,0.00011098,2]
[345062189,1733963433348,-500.0,0.00011098,2]
[345062190,1733963433358,-500.0,0.00011098,2]
[345062191,1733963433368,-500.0,0.00011098,2]
[345062192,1733963433377,-500.0,0.00011098,2]
[345062193,1733963433388,-560.78,0.00011098,2]
[345062194,1733963433397,-313.03,0.00011098,2]
[345062195,1733963433407,-500.0,0.00011098,2]
[345062196,1733963433416,-500.0,0.00011098,2]
[345062197,1733963433427,-500.0,0.00011098,2]
[345062198,1733963433437,-500.0,0.00011098,2]
[345062199,1733963433447,-500.0,0.00011098,2]
[345062200,1733963433456,-500.0,0.00011098,2]
[345062201,1733963433467,-500.0,0.00011098,2]
[345062202,1733963433480,-294.44,0.00011098,2]
[345062203,1733963433490,-500.0,0.00011098,2]
[345062204,1733963433500,-500.0,0.00011098,2]
[345062205,1733963433509,-500.0,0.00011098,2]
[345062206,1733963433519,-267.84253021,0.00011098,2]
[345062207,1733963433528,-500.0,0.00011098,2]
[345062208,1733963433538,-500.0,0.00011098,2]
[345062209,1733963433547,-500.0,0.00011098,2]
[345062210,1733963433557,-500.0,0.00011098,2]
[345062211,1733963433566,-625.73196438,0.00011098,2]
[345062212,1733963433575,-500.0,0.00011098,2]
[345062213,1733963433584,-500.0,0.00011098,2]
[345062214,1733963433594,-500.0,0.00011098,2]
[345062215,1733963433604,-544.84,0.00011098,2]
[345062216,1733963433613,-500.0,0.00011098,2]
[345062217,1733963433623,-500.0,0.00011098,2]
[345062218,1733963433632,-500.0,0.00011098,2]
[345062219,1733963433642,-500.0,0.00011098,2]
[345062220,1733963433651,-500.0,0.00011098,2]
[345062221,1733963433661,-500.0,0.00011098,2]
[345062222,1733963433671,-500.0,0.00011098,2]
[345062223,1733963433680,-500.0,0.00011098,2]
[345062224,1733963433690,-500.0,0.00011098,2]
[345062225,1733963433700,-500.0,0.00011098,2]
[345062226,1733963433709,-500.0,0.00011098,2]
[345062227,1733963433722,-500.0,0.00011098,2]
[345062228,1733963433731,-500.0,0.00011098,2]
[345062229,1733963433740,-500.49860025,0.00011098,2]
[345062230,1733963433749,-500.0,0.00011098,2]
[345062231,1733963433759,-500.0,0.00011098,2]
[345062232,1733963433768,-500.0,0.00011098,2]
[345062233,1733963433778,-500.0,0.00011098,2]
[345062234,1733963433787,-444.12354779,0.00011098,2]
[345062235,1733963433797,-500.0,0.00011098,2]
[345062236,1733963433807,-500.0,0.00011098,2]
[345062237,1733963433820,-500.0,0.00011098,2]
[345062238,1733963433830,-500.0,0.00011098,2]
[345062239,1733963433839,-520.34137772,0.00011098,2]
[345062240,1733963433848,-500.0,0.00011098,2]
[345062241,1733963433859,-500.0,0.00011098,2]
[345062242,1733963433868,-500.0,0.00011098,2]
[345062243,1733963433878,-500.0,0.00011098,2]
[345062244,1733963433890,-500.0,0.00011098,2]
[345062245,1733963433900,-500.0,0.00011098,2]
[345062246,1733963433909,-500.0,0.00011098,2]
[345062247,1733963433919,-500.0,0.00011098,2]
[345062248,1733963433928,-500.0,0.00011098,2]
[345062249,1733963434141,-500.0,0.00011098,2]
[345062250,1733963434151,-500.0,0.00011098,2]
[345062251,1733963434160,-500.0,0.00011098,2]
[345062252,1733963434170,-500.0,0.00011098,2]
[345062253,1733963434179,-500.0,0.00011098,2]
[345062254,1733963434189,-500.0,0.00011098,2]
[345062255,1733963434199,-500.0,0.00011098,2]
[345062256,1733963434209,-500.0,0.00011098,2]
[345062257,1733963434221,-500.0,0.00011098,2]
[345062258,1733963434231,-500.0,0.00011098,2]
[345062259,1733963434241,-500.0,0.00011098,2]
[345062260,1733963434252,-500.0,0.00011098,2]
[345062261,1733963434262,-500.0,0.00011098,2]
[345062262,1733963434272,-500.0,0.00011098,2]
[345062263,1733963434282,-500.0,0.00011098,2]
[345062264,1733963434293,-500.0,0.00011098,2]
[345062265,1733963434303,-500.0,0.00011098,2]
[345062266,1733963434313,-500.0,0.00011098,2]
[345062267,1733963434323,-500.0,0.00011098,2]
[345062268,1733963434332,-500.0,0.00011098,2]
[345062269,1733963434342,-464.80769127,0.00011098,2]
[345062270,1733963434352,-500.0,0.00011098,2]
[345062271,1733963434361,-500.0,0.00011098,2]
[345062272,1733963434371,-500.0,0.00011098,2]
[345062273,1733963434381,-500.0,0.00011098,2]
[345062274,1733963434391,-634.32,0.00011098,2]
[345062275,1733963434401,-161.57701037,0.00011098,2]
[345062276,1733963434410,-500.0,0.00011098,2]
[345062277,1733963434419,-500.0,0.00011098,2]
[345062278,1733963434429,-500.0,0.00011098,2]
[345062279,1733963434438,-500.0,0.00011098,2]
[345062280,1733963434448,-556.5567062,0.00011098,2]
[345062281,1733963434459,-500.0,0.00011098,2]
[345062282,1733963434472,-500.0,0.00011098,2]
[345062283,1733963434482,-500.0,0.00011098,2]
[345062284,1733963434491,-500.0,0.00011098,2]